bitfinex/quotes_ETHUSD_20260202
["timestamp","ask_amount","ask_price","bid_price","bid_amount"]
[1770061190211,12.54653596,2341.7,2340.4,0.001]
[1770061190413,13.46059773,2341.6,2340.6,4.2723934]
[1770061190615,13.46059773,2341.5,2340.4,0.001]
[1770061190785,12.54653596,2341.5,2340.4,0.001]
[1770061191389,12.54653596,2342.1,2341.0,0.01710608]
[1770061191614,14.13089539,2342.1,2341.0,0.01710608]
[1770061191920,12.54653596,2341.9,2340.6,0.01710608]
[1770061192223,12.54653596,2341.9,2340.6,1.06807849]
[1770061192404,13.4597446,2341.8,2340.5,0.895]
[1770061192609,13.89251042,2341.7,2340.6,1.28729222]
[1770061192914,12.54653596,2341.7,2340.6,1.28729222]
[1770061193319,12.54653596,2341.5,2340.6,1.28729222]
[1770061193520,12.54653596,2341.5,2340.4,1.0691921]
[1770061193719,12.54653596,2341.5,2340.4,0.001]
[1770061193920,1.06773725,2341.4,2340.4,0.001]
[1770061194220,13.61427321,2341.4,2340.4,0.001]
[1770061200409,13.61427321,2341.4,2340.0,0.001804]
[1770061200410,12.54653596,2341.2,2340.0,0.001804]
[1770061201238,12.54653596,2341.0,2340.0,0.001804]
[1770061201449,1.78852222,2341.3,2340.3,11.99402824]
[1770061201652,1.06773725,2341.4,2340.6,0.001]
[1770061201948,1.1420319,2341.9,2340.6,0.001]
[1770061201949,1.58435943,2342.1,2340.9,11.99402824]
[1770061202153,1.06744944,2342.1,2341.0,13.17632498]
[1770061202354,1.55814191,2342.6,2341.5,0.01710608]
[1770061202510,0.66314191,2342.6,2341.8,0.01710608]
[1770061203112,0.0011,2342.5,2341.8,0.01710608]
[1770061203313,0.0011,2342.5,2341.8,1.19940282]
[1770061205261,0.0011,2342.5,2341.7,1.06758005]
[1770061205438,0.0011,2342.5,2341.8,1.06755089]
[1770061206324,0.0011,2342.5,2341.3,11.97692216]
[1770061206528,12.54763596,2342.5,2341.3,4.27101445]
[1770061206846,13.97433435,2342.4,2341.0,1.19940282]
[1770061207050,12.54653596,2342.2,2341.1,1.06786831]
[1770061207356,12.54653596,2342.2,2341.0,2.26730802]
[1770061207563,1.06732698,2342.3,2341.0,14.24423018]
[1770061207740,2.26031111,2342.3,2341.1,1.97144842]
[1770061208253,14.80684707,2342.3,2341.1,1.97144842]
[1770061209356,14.80684707,2342.3,2341.2,1.06782846]
[1770061213237,1.06836494,2342.5,2341.4,11.99402824]
[1770061213639,1.06836494,2342.5,2341.5,0.895]
[1770061214071,1.06836494,2342.5,2341.5,0.91210608]
[1770061214372,1.06836494,2342.5,2341.6,1.06764605]
[1770061214741,12.54763596,2342.5,2341.6,1.06764605]
[1770061214942,0.0011,2342.3,2341.7,0.62503363]
[1770061216078,0.0011,2342.5,2341.7,12.60195579]
[1770061216447,0.0011,2342.5,2341.8,13.04447703]
[1770061217679,0.0011,2342.5,2341.9,0.01710608]
[1770061218061,0.0011,2342.5,2341.8,13.04447703]
[1770061218291,0.0011,2342.5,2341.7,0.62503363]
[1770061218292,12.54763596,2342.5,2341.7,0.62503363]
[1770061218440,13.61381738,2342.4,2341.4,0.001]
[1770061218640,13.61381738,2342.4,2341.4,1.0687343]
[1770061219072,13.61381738,2342.4,2341.4,0.001]
[1770061219262,13.61381738,2342.4,2341.5,1.06768246]
[1770061219467,1.78840431,2342.3,2341.5,1.60163805]
[1770061219656,1.78840431,2342.3,2341.5,1.0676581]
[1770061220065,1.78840431,2342.3,2341.4,1.06870301]
[1770061220463,1.06737255,2342.2,2341.4,0.001]
[1770061221576,1.06834129,2342.5,2341.5,0.01710608]
[1770061222077,0.0011,2342.5,2341.5,0.01710608]
[1770061222276,0.0011,2342.5,2341.5,13.55738469]
[1770061222481,0.0011,2342.5,2341.6,1.06764605]
[1770061228578,0.0011,2342.5,2341.6,1.06864605]
[1770061228781,0.0011,2342.3,2341.6,1.06864605]
[1770061232598,0.0011,2342.3,2341.7,0.01710608]
[1770061232786,0.0011,2342.5,2342.0,0.01710608]
[1770061233080,0.0011,2342.9,2342.0,12.32480426]
[1770061233280,0.0011,2342.9,2342.3,0.01710608]
[1770061233482,0.0011,2342.9,2342.4,1.06728142]
[1770061233992,0.0011,2343.5,2342.4,1.06728142]
[1770061234196,0.0011,2343.5,2343.1,0.01710608]
[1770061234399,0.0008024,2343.8,2343.1,12.32480426]
[1770061234700,13.08798896,2344.5,2343.4,0.01710608]
[1770061235067,0.895,2344.5,2343.7,0.01710608]
[1770061235267,0.895,2344.5,2343.4,12.32480426]
[1770061235468,1.06711397,2344.6,2343.5,1.23248043]
[1770061235683,1.06711397,2344.6,2343.6,1.06673493]
[1770061238801,0.0008016,2344.6,2343.6,1.06673493]
[1770061239503,0.0008016,2344.6,2343.8,12.32480426]
[1770061239692,0.0008064,2345.1,2344.1,12.32480426]
[1770061239998,0.0008064,2345.1,2344.2,13.55728469]
[1770061240206,0.0008064,2345.1,2344.3,13.37411459]
[1770061240501,5.15878492,2345.8,2344.3,13.37411459]
[1770061240502,0.0008072,2345.8,2345.0,0.01710608]
[1770061240689,1.06654613,2345.8,2344.8,13.20269818]
[1770061240999,13.25953509,2345.8,2344.9,1.32198043]
[1770061241209,13.25953509,2345.8,2344.3,1.96141641]
[1770061241574,0.0011,2345.6,2344.3,1.96141641]
[1770061242004,12.19408896,2345.6,2344.3,1.96141641]
[1770061242215,1.06587081,2345.5,2344.3,1.96141641]
[1770061242373,1.7523443,2345.4,2344.4,1.97843667]
[1770061243472,1.06695308,2345.6,2344.5,12.32480426]
[1770061243681,1.06692942,2345.6,2344.5,12.32480426]
[1770061243891,1.06692942,2345.6,2344.5,12.30769818]
[1770061244082,0.0011,2345.6,2344.7,1.06623448]
[1770061244273,0.0011,2345.6,2344.8,0.53482785]
[1770061244779,0.0008072,2345.8,2345.2,0.01710608]
[1770061245081,1.06552571,2346.3,2345.2,0.01710608]
[1770061245082,1.06625391,2346.5,2345.5,0.01710608]
[1770061245285,0.53278014,2346.4,2345.3,13.20269818]
[1770061245471,0.43278014,2346.4,2345.3,0.895]
[1770061246077,12.6257691,2346.4,2345.0,0.91110608]
[1770061246406,12.19298896,2346.2,2345.1,1.06605262]
[1770061246610,12.19298896,2346.2,2345.2,0.62413692]
[1770061246611,1.32584964,2346.1,2345.2,0.62413692]
[1770061247786,13.5188386,2346.1,2345.2,0.62413692]
[1770061248002,13.5188386,2346.1,2345.1,1.06605262]
[1770061248202,1.06564364,2346.0,2345.1,1.06605262]
[1770061250511,12.95234694,2345.9,2344.9,1.06612128]
[1770061250816,14.354146,2345.8,2344.6,1.06624066]
[1770061251015,14.354146,2345.8,2344.7,1.06623206]
[1770061251508,14.354146,2345.8,2344.3,1.9603921]
[1770061252299,12.95234694,2345.6,2344.1,1.06650059]
[1770061252502,12.95234694,2345.4,2343.9,1.06658373]
[1770061252690,12.95234694,2345.2,2343.8,0.001]
[1770061253293,13.55435714,2345.2,2343.8,0.001]
[1770061253511,12.95234694,2345.0,2343.8,0.001]
[1770061253681,12.95234694,2344.8,2343.8,0.001]
[1770061253879,12.95234694,2344.6,2343.5,0.001]
[1770061254085,0.894,2344.7,2343.9,0.01710608]
[1770061254335,14.01830865,2345.3,2343.9,0.01710608]
[1770061254620,14.01830865,2345.3,2344.1,1.06650418]
[1770061255319,14.01830865,2345.3,2344.1,1.06646814]
[1770061255704,14.01830865,2345.3,2344.2,1.06645926]
[1770061255907,1.91761555,2345.2,2344.2,1.06645926]
[1770061256813,1.91761555,2345.2,2344.0,1.0665529]
[1770061256814,1.06605262,2345.1,2344.0,1.0665529]
[1770061257208,1.06605262,2345.1,2344.1,0.01710608]
[1770061257615,1.06605262,2345.1,2343.9,1.06656515]
[1770061257922,14.01839956,2345.1,2343.9,1.06656515]
[1770061258131,14.9723695,2345.0,2344.0,1.83320446]
[1770061258415,14.9723695,2345.0,2343.8,1.06664006]
[1770061258618,1.06614354,2344.9,2343.9,1.06659047]
[1770061258921,14.01849048,2344.9,2343.8,1.06664311]
[1770061260247,14.01849048,2344.9,2343.8,1.06663713]
[1770061260527,2.03030872,2344.8,2343.8,1.06663713]
[1770061260734,2.03030872,2344.8,2343.7,4.26674523]
[1770061260735,1.06623448,2344.7,2343.7,4.26667256]
[1770061260933,1.06623448,2344.7,2343.8,1.0666077]
[1770061261136,1.06623448,2344.7,2343.7,1.06666364]
[1770061261434,1.06623448,2344.7,2343.8,1.06663973]
[1770061261727,3.52406825,2344.7,2343.7,1.06665348]
[1770061261919,3.52406825,2344.7,2343.6,1.06671003]
[1770061262114,3.52406825,2344.7,2343.8,1.06664345]
[1770061262700,3.52406825,2344.7,2343.6,4.26687741]
[1770061263009,1.06623448,2344.7,2343.6,16.20714927]
[1770061263627,13.14772209,2344.7,2343.5,0.01810608]
[1770061263925,13.14772209,2344.7,2343.5,0.001]
[1770061263926,14.04172209,2344.7,2343.5,0.001]
[1770061264125,14.04172209,2344.7,2343.5,1.06777997]
[1770061264700,13.94172209,2344.7,2343.5,1.06777997]
[1770061264912,14.10517732,2344.6,2343.6,1.60200369]
[1770061265301,14.10517732,2344.6,2343.5,0.001]
[1770061266402,12.08148761,2344.4,2343.5,0.001]
[1770061266932,12.08148761,2344.2,2343.5,0.001]
[1770061267232,12.97548761,2344.1,2343.5,0.001]
[1770061267648,12.97548761,2344.1,2343.2,1.80275424]
[1770061267937,13.37903637,2344.0,2343.2,1.80275424]
[1770061268832,12.08148761,2343.8,2342.7,0.0008072]
[1770061271009,13.14817703,2343.7,2342.7,0.0008072]
[1770061271406,1.06666432,2343.8,2342.7,11.94107906]
[1770061271611,1.06662532,2343.9,2342.9,11.95737794]
[1770061271811,1.06662532,2343.9,2343.0,1.19573779]
[1770061272945,1.29754876,2344.0,2343.1,1.06696257]
[1770061273244,0.894,2344.1,2343.1,13.00723443]
[1770061273448,1.96051802,2344.1,2343.2,1.84708225]
[1770061275251,1.96051802,2344.1,2343.3,1.0668715]
[1770061276659,1.96051802,2344.1,2343.2,2.913964]
[1770061276861,1.96051802,2344.1,2343.2,1.06688175]
[1770061276862,14.04200563,2344.1,2343.2,1.06688175]
[1770061277062,12.08148761,2343.8,2342.7,0.0008072]
[1770061277261,12.08148761,2343.6,2342.7,0.0008072]
[1770061278662,0.895,2343.5,2342.7,0.0008072]
[1770061278833,12.97648761,2343.5,2342.7,0.0008072]
[1770061279161,13.14835911,2343.3,2342.7,0.0008072]
[1770061279339,13.14835911,2343.3,2342.2,0.0008024]
[1770061280253,12.22089798,2343.1,2342.2,0.0008024]
[1770061281359,13.28790608,2343.0,2342.2,0.0008024]
[1770061281564,12.22089798,2342.8,2342.2,0.0008024]
[1770061282575,2.65059385,2342.9,2342.2,0.0008024]
[1770061282732,0.895,2342.9,2342.2,0.0008024]
[1770061283370,1.96205679,2342.9,2342.2,0.0008024]
[1770061284975,0.895,2342.9,2342.2,0.0008024]
[1770061285478,1.0668715,2343.3,2342.2,12.59895414]
[1770061285638,1.06664391,2343.8,2342.2,12.59895414]
[1770061285839,13.78381226,2343.7,2342.4,12.59815174]
[1770061286040,13.78381226,2343.7,2342.3,1.25989541]
[1770061286795,13.78381226,2343.7,2342.3,13.85804715]
[1770061286999,1.52124378,2343.6,2342.4,1.38588496]
[1770061287585,2.58801479,2343.6,2342.5,1.06723585]
[1770061290587,1.96171521,2343.7,2342.5,13.66538759]
[1770061291488,0.895,2343.7,2342.5,13.66538759]
[1770061291689,1.96172217,2343.7,2342.5,1.06723585]
[1770061291867,1.96172217,2343.7,2342.5,13.66538759]
[1770061292067,1.96172217,2343.7,2342.6,14.53017334]
[1770061292268,14.18262015,2343.7,2342.6,1.9320216]
[1770061292473,14.18262015,2343.7,2342.5,1.06723585]
[1770061293594,0.0011,2343.4,2342.5,13.66538759]
[1770061299305,12.22089798,2343.3,2342.5,1.06723585]
[1770061300606,12.22089798,2342.9,2341.7,0.001]
[1770061300905,12.22089798,2342.7,2341.7,0.001]
[1770061301099,0.9143027,2342.6,2341.7,0.001]
[1770061301288,13.13520068,2342.5,2341.7,0.001]
[1770061302103,12.22089798,2342.5,2341.7,0.001]
[1770061302873,13.2881794,2342.4,2341.7,0.001]
[1770061303073,13.97662849,2342.3,2341.7,0.001]
[1770061303483,13.11589798,2342.2,2341.7,0.001]
[1770061303684,13.11589798,2342.2,2341.6,0.001]
[1770061304807,1.06741812,2342.1,2341.6,0.001]
[1770061305379,0.895,2342.2,2341.6,0.001]
[1770061305578,1.96237346,2342.2,2341.6,0.001]
[1770061305780,2.39590168,2342.8,2341.9,0.01710608]
[1770061305979,1.06711107,2342.8,2341.9,0.01710608]
[1770061306482,1.06711107,2342.8,2341.6,12.59915174]
[1770061306483,1.06711107,2342.8,2341.7,12.61525782]
[1770061306878,0.895,2342.9,2341.8,13.66570661]
[1770061307079,1.96206002,2342.9,2342.0,12.61525782]
[1770061307481,1.96206002,2342.9,2342.0,12.59815174]
[1770061307712,1.96206002,2342.9,2342.1,1.25981517]
[1770061308285,1.06804964,2343.2,2342.1,13.85796691]
[1770061308634,0.0011,2343.2,2342.3,12.59815174]
[1770061308924,0.0011,2343.2,2342.7,1.06714474]
[1770061309106,0.0011,2343.2,2342.8,1.79340084]
[1770061311936,0.0011,2343.2,2342.8,2.86046842]
[1770061312229,0.0011,2343.2,2342.6,1.06715485]
[1770061312432,0.0011,2343.2,2341.9,16.17517203]
[1770061312608,0.0011,2343.2,2342.3,1.06728232]
[1770061312802,0.0011,2343.2,2342.2,1.0673441]
[1770061313347,12.17357813,2343.2,2341.9,11.90526127]
[1770061313505,1.21856781,2343.2,2342.4,1.06726356]
[1770061313844,0.0011,2343.2,2342.5,1.06723196]
[1770061314045,0.0011,2343.2,2342.2,1.06737255]
[1770061315661,12.17247813,2343.1,2341.8,0.001]
[1770061315942,12.17247813,2342.9,2341.8,1.06855014]
[1770061316125,12.17247813,2342.7,2341.8,0.001]
[1770061318550,1.0671903,2342.6,2341.8,0.001]
[1770061319628,1.0671903,2342.6,2341.9,0.001]
[1770061320232,13.23966843,2342.6,2341.9,0.001]
[1770061321072,12.17247813,2342.4,2341.5,0.001]
[1770061321377,0.91242612,2342.5,2341.5,0.001]
[1770061321378,12.17247813,2342.2,2341.5,0.001]
[1770061321523,0.91180453,2342.1,2341.1,0.001]
[1770061321723,13.08424356,2342.0,2341.1,0.001]
[1770061321969,12.17247813,2341.8,2340.6,0.001]
[1770061322163,12.17247813,2341.6,2340.6,1.06907625]
[1770061322463,14.37590249,2341.9,2340.6,1.06906742]
[1770061322648,1.06760046,2341.7,2340.6,0.001]
[1770061323022,13.24007859,2341.7,2340.6,0.001]
[1770061324853,1.06760046,2341.7,2340.6,0.001]
[1770061325565,13.24007859,2341.7,2340.6,0.001]
[1770061325736,13.92352617,2341.6,2340.6,0.001]
[1770061326260,13.08118719,2341.5,2340.4,0.001]
[1770061326460,12.17247813,2341.3,2340.4,0.001]
[1770061326663,1.06787407,2341.1,2340.4,0.001]
[1770061330314,1.06758654,2341.8,2340.5,11.92236735]
[1770061330567,16.44253503,2341.9,2340.5,11.92236735]
[1770061330568,0.895,2341.9,2340.8,11.92236735]
[1770061330744,1.06728142,2342.4,2341.2,11.92236735]
[1770061330947,1.96228142,2342.4,2341.2,11.92236735]
[1770061331148,2.01545476,2342.3,2341.3,1.19223674]
[1770061331345,1.06737255,2342.2,2341.4,1.06773725]
[1770061331577,12.17247813,2342.2,2341.0,1.06789707]
[1770061331770,12.17247813,2342.2,2341.2,1.06782402]
[1770061332169,12.17247813,2342.2,2340.9,1.06796253]
[1770061332344,13.69800523,2342.1,2340.9,1.06796253]
[1770061332877,13.69800523,2342.1,2341.0,1.0679128]
[1770061333241,0.0011,2341.6,2340.7,1.06805656]
[1770061335138,0.0011,2341.6,2340.9,11.90526127]
[1770061335369,0.8961,2341.8,2341.0,12.97318096]
[1770061335370,0.0011,2341.8,2341.0,12.97318096]
[1770061335566,0.0011,2341.8,2341.1,13.62974724]
[1770061336155,2.91045476,2342.3,2341.3,11.90526127]
[1770061336359,0.895,2342.3,2341.3,11.90526127]
[1770061336973,1.96234092,2342.3,2341.3,11.90526127]
[1770061337477,1.96234092,2342.3,2341.3,1.06776405]
[1770061339284,14.13481905,2342.3,2341.3,1.06776405]
[1770061339775,14.13481905,2342.3,2341.2,4.27127092]
[1770061339983,1.84040875,2342.2,2341.2,5.49429187]
[1770061341647,1.06741812,2342.1,2341.2,5.49429187]
[1770061341848,2.90780467,2342.2,2341.2,5.49429187]
[1770061344587,2.9077957,2342.2,2341.3,12.37118234]
[1770061344750,1.06738695,2342.2,2341.3,12.37118234]
[1770061344956,1.96236136,2342.3,2341.3,12.37118234]
[1770061345282,0.895,2342.3,2341.4,0.001]
[1770061345496,0.895,2342.3,2341.5,12.37118234]
[1770061345797,0.0011,2341.9,2341.6,1.23721823]
[1770061346186,0.0011,2342.8,2341.6,1.23721823]
[1770061346187,4.26964573,2342.8,2341.7,13.4387828]
[1770061350697,16.5951287,2342.8,2341.7,13.4387828]
[1770061354508,4.26964573,2342.8,2341.7,13.4387828]
[1770061354673,1.06819919,2342.8,2341.7,13.4387828]
[1770061354868,1.6914565,2342.8,2341.8,14.26582263]
[1770061356082,1.6914565,2342.8,2341.9,1.06750928]
[1770061356905,14.01693947,2342.8,2341.9,1.06750928]
[1770061358006,0.0011,2342.6,2341.9,1.06750928]
[1770061363508,0.0011,2342.6,2341.9,13.43869162]
[1770061363803,0.0011,2342.6,2342.1,12.37118234]
[1770061364776,4.26917674,2343.0,2342.1,12.37118234]
[1770061364777,0.0011,2343.0,2342.3,12.37118234]
[1770061365111,0.0019032,2343.1,2342.4,12.38828842]
[1770061365279,0.0011,2343.2,2342.6,12.37118234]
[1770061366288,0.0011,2343.2,2342.7,12.38828842]
[1770061366604,0.0011,2343.2,2342.7,12.37118234]
[1770061366809,12.32658297,2343.2,2342.5,1.22302095]
[1770061366980,0.0011,2343.2,2342.2,12.37118234]
[1770061367172,0.0011,2343.2,2342.5,1.06723162]
[1770061367507,0.0011,2343.2,2342.5,1.06723551]
[1770061368290,0.0011,2343.2,2342.1,12.37118234]
[1770061368484,12.32658297,2343.2,2342.3,1.06730919]
[1770061368684,12.32658297,2343.2,2342.2,1.61669987]
[1770061368891,1.06804658,2343.2,2342.3,13.43850932]
[1770061369316,0.0011,2343.2,2342.3,13.43850932]
[1770061369509,0.0011,2343.2,2342.3,13.4556154]
[1770061369707,0.0011,2343.2,2342.5,12.90029745]
[1770061369908,0.0011,2343.2,2342.6,12.06708758]
[1770061370209,0.0011,2343.0,2342.6,12.0499815]
[1770061370418,0.0011,2343.0,2342.4,1.93416232]
[1770061370621,0.0011,2343.0,2342.3,1.06732698]
[1770061372417,0.0011,2343.0,2342.2,2.68404312]
[1770061373496,12.18052717,2342.8,2342.1,0.001]
[1770061374300,12.18052717,2342.8,2342.2,1.06736828]
[1770061374506,0.8961,2343.0,2342.1,0.001]
[1770061374812,0.9139521,2342.9,2342.1,1.06838251]
[1770061375000,0.8961,2343.0,2342.1,1.06838251]
[1770061375199,2.22161399,2342.9,2342.1,1.06838251]
[1770061375519,2.22161399,2342.9,2342.1,0.001]
[1770061375520,1.30766272,2342.9,2342.1,0.001]
[1770061375825,1.30766272,2342.9,2342.1,1.06841529]
[1770061375826,1.06709919,2342.8,2342.1,1.06841529]
[1770061377827,1.06709919,2342.8,2342.1,0.001]
[1770061378197,14.55526829,2342.9,2342.1,0.001]
[1770061378419,2.37474112,2342.9,2342.1,0.64903841]
[1770061378613,1.0670784,2342.9,2342.1,0.64903841]
[1770061378812,13.24760557,2342.9,2342.1,0.64903841]
[1770061380632,13.09540788,2342.8,2342.1,0.001]
[1770061380838,12.18052717,2342.6,2341.4,0.001]
[1770061381038,12.18052717,2342.4,2341.4,0.001]
[1770061381202,12.18052717,2342.4,2341.1,0.001]
[1770061381203,12.18052717,2342.2,2341.1,0.001]
[1770061381408,12.18052717,2342.0,2341.1,0.001]
[1770061381634,13.49006796,2341.9,2341.1,0.001]
[1770061381936,12.18052717,2342.2,2341.1,13.13594625]
[1770061382230,13.07552717,2342.4,2341.1,13.11884017]
[1770061382435,14.16188454,2342.3,2341.1,1.06885867]
[1770061382635,13.09455756,2342.2,2341.1,1.08596475]
[1770061382836,12.18052717,2342.2,2341.1,13.13594625]
[1770061383231,1.32478542,2342.1,2342.0,0.001]
[1770061383553,1.32478542,2342.1,2341.2,13.79072575]
[1770061383845,1.06732698,2342.3,2341.2,13.79072575]
[1770061384339,1.96231738,2342.4,2341.3,13.11776435]
[1770061386518,14.14284455,2342.4,2341.3,1.06778285]
[1770061388224,13.07552717,2342.4,2341.3,1.06778285]
[1770061388416,3.80345092,2342.4,2341.5,1.06769165]
[1770061388616,1.96228395,2342.4,2341.5,1.06769165]
[1770061389539,0.895,2342.4,2341.5,13.11767315]
[1770061389738,0.895,2342.4,2341.5,13.13477923]
[1770061389937,0.895,2342.4,2341.7,12.0499815]
[1770061390154,1.06712558,2342.8,2341.9,12.0499815]
[1770061390331,1.06818899,2342.9,2342.1,12.0499815]
[1770061390540,0.0011,2342.9,2342.2,1.06737255]
[1770061391074,12.18162717,2342.9,2342.0,1.20670876]
[1770061391278,12.18162717,2342.9,2341.9,1.06748767]
[1770061392452,12.18162717,2342.9,2342.0,1.06745637]
[1770061392969,1.06709919,2342.8,2341.8,4.27015482]
[1770061393450,12.18052717,2342.6,2341.5,4.27065874]
[1770061393629,12.18052717,2342.6,2341.5,1.06767167]
[1770061393826,12.18052717,2342.4,2341.6,0.725148]
[1770061394054,12.18052717,2342.4,2341.6,1.79278153]
[1770061394529,12.18052717,2342.4,2341.7,1.06759617]
[1770061394729,1.21805272,2342.5,2341.7,1.06759617]
[1770061395255,1.06728142,2342.4,2341.7,1.06759617]
[1770061395451,0.0011,2342.2,2341.7,1.6740284]
[1770061397058,0.0011,2342.2,2341.7,0.60643223]
[1770061397258,0.0011,2342.2,2341.5,0.001]
[1770061397432,0.0011,2342.2,2341.5,1.06865763]
[1770061397754,0.0011,2342.2,2341.7,1.06759854]
[1770061398256,0.0011,2342.2,2341.5,12.0509815]
[1770061398629,0.0011,2342.2,2341.5,0.001]
[1770061402047,1.75693295,2342.2,2341.5,0.001]
[1770061402561,13.9775275,2342.2,2341.5,0.001]
[1770061403945,1.06741812,2342.1,2341.5,0.001]
[1770061405672,13.28801267,2342.1,2341.5,0.001]
[1770061405868,0.91574268,2342.0,2341.5,0.001]
[1770061406165,1.06750928,2341.9,2341.5,0.001]
[1770061409065,1.06750928,2341.9,2341.7,0.001]
[1770061409249,1.06750928,2341.9,2341.5,0.001]
[1770061412642,13.28819501,2341.7,2341.3,0.001]
[1770061412868,2.76324897,2341.6,2341.1,0.001]
[1770061413166,0.91568748,2341.5,2341.1,0.001]
[1770061413466,1.84744053,2341.6,2341.1,0.001]
[1770061414368,14.03074241,2341.5,2340.9,0.001]
[1770061414571,14.7235607,2341.4,2340.6,0.001]
[1770061414748,12.22059455,2341.2,2340.5,0.001]
[1770061414948,0.91514786,2341.1,2340.5,0.001]
[1770061415175,0.895,2341.0,2340.5,0.001]
[1770061415375,0.895,2341.0,2340.5,11.91699685]
[1770061416867,1.06796531,2340.9,2340.5,11.91699685]
[1770061417371,1.06796531,2340.9,2340.5,0.001]
[1770061417760,2.65557688,2341.4,2340.5,12.9851435]
[1770061418085,4.27093658,2341.5,2340.5,12.9851435]
[1770061418086,1.06772428,2341.5,2340.7,11.93310293]
[1770061418863,1.06772428,2341.5,2340.8,12.98400778]
[1770061419782,0.895,2341.7,2340.8,12.98400778]
[1770061420091,1.96351812,2342.2,2341.4,11.91599685]
[1770061420379,3.01384171,2342.2,2341.4,13.10759654]
[1770061421474,3.01384171,2342.2,2341.4,14.17532026]
[1770061422453,0.0011,2342.0,2341.4,14.17532026]
[1770061422647,0.0011,2342.2,2341.5,11.91599685]
[1770061422851,0.0011,2342.2,2341.6,13.33352888]
[1770061423084,0.0011,2342.4,2341.6,13.33352888]
[1770061423383,17.63385145,2342.9,2341.6,13.33352888]
[1770061423384,1.06712277,2342.8,2341.9,11.91599685]
[1770061425488,4.26938304,2342.9,2341.9,12.98347612]
[1770061425666,0.91348652,2342.8,2341.9,12.98347612]
[1770061425866,4.26938304,2342.9,2342.0,1.72536673]
[1770061426067,0.91348595,2342.8,2342.0,1.72536673]
[1770061426391,4.26938304,2342.9,2342.0,1.72536673]
[1770061428455,4.26938304,2342.9,2342.0,2.79282181]
[1770061429659,4.26938304,2342.9,2342.0,1.72536673]
[1770061429859,12.81894052,2342.8,2341.6,1.41753203]
[1770061430194,12.98265694,2342.6,2341.5,1.96265149]
[1770061430373,13.87765694,2342.6,2341.5,0.895]
[1770061430567,14.04989279,2342.5,2341.5,0.895]
[1770061431658,14.49743145,2342.4,2341.1,1.0678472]
[1770061431857,12.98265694,2342.2,2340.7,13.06213604]
[1770061432164,12.98265694,2342.0,2340.9,1.06794072]
[1770061432361,13.87765694,2342.0,2340.9,1.06794072]
[1770061432564,1.98020738,2341.9,2340.8,16.26513452]
[1770061432865,1.06750928,2341.9,2340.8,13.06111144]
[1770061433068,15.81676529,2341.8,2340.7,0.001]
[1770061433391,15.81676529,2341.8,2340.7,13.06214342]
[1770061433392,13.89520543,2341.7,2340.7,13.06214342]
[1770061433690,12.98265694,2341.7,2340.7,13.06214342]
[1770061434690,1.06764605,2341.6,2340.7,13.06214342]
[1770061434987,1.06764605,2341.6,2340.8,1.82295507]
[1770061434988,3.51891045,2341.6,2340.8,1.82295507]
[1770061435858,3.51891045,2341.6,2340.8,13.81605558]
[1770061436058,1.06764605,2341.6,2340.8,13.81605558]
[1770061436861,1.06750928,2341.9,2340.9,1.06796531]
[1770061438181,14.05016622,2341.9,2340.9,1.06796531]
[1770061439086,1.06750928,2341.9,2341.0,11.99310051]
[1770061439287,1.06750928,2341.9,2341.1,13.3009177]
[1770061443383,4.27096651,2342.0,2341.2,1.06782846]
[1770061444998,1.0685637,2342.0,2341.2,13.06092897]
[1770061446374,1.0685637,2342.0,2341.3,0.001]
[1770061449241,0.0011,2342.0,2341.3,11.99410051]
[1770061449410,0.0011,2342.0,2341.4,13.29929341]
[1770061450620,0.0011,2342.0,2341.4,1.3061929]
[1770061450794,12.98375694,2342.0,2341.3,0.001]
[1770061451517,12.98375694,2342.0,2341.4,1.06773704]
[1770061451920,0.0011,2342.0,2341.4,1.06773704]
[1770061452815,0.0011,2342.0,2341.3,1.06874664]
[1770061454209,0.0011,2342.0,2341.3,13.06184715]
[1770061454417,0.0011,2342.0,2341.4,1.73331523]
[1770061455096,0.0011,2342.0,2341.4,2.80105055]
[1770061455311,0.0011,2342.0,2341.4,14.79415106]
[1770061455515,0.0011,2342.0,2341.6,11.99310051]
[1770061455826,0.0011,2342.2,2341.8,11.99310051]
[1770061455991,0.0011,2342.4,2341.9,1.20102066]
[1770061456192,0.0011,2342.4,2341.9,13.19412117]
[1770061457293,0.0011,2342.4,2342.0,1.0674637]
[1770061457694,0.0011,2342.4,2342.0,13.06056421]
[1770061459209,0.0011,2342.4,2341.9,5.47096279]
[1770061459210,0.0011,2342.2,2341.9,2.2685014]
[1770061459410,0.0011,2342.2,2342.0,0.22685014]
[1770061460011,0.0011,2342.2,2341.6,0.895]
[1770061460211,0.0011,2342.2,2341.6,1.96261097]
[1770061460521,0.0011,2342.2,2341.7,1.06759707]
[1770061460914,0.0011,2342.2,2341.8,1.06754264]
[1770061461397,0.0011,2342.2,2341.7,1.06760046]
[1770061461593,0.0011,2342.2,2341.7,2.90888012]
[1770061466203,0.0011,2342.2,2341.7,15.08758187]
[1770061467627,0.0011,2342.4,2342.0,12.17870175]
[1770061468000,0.0011,2342.4,2342.0,13.07370175]
[1770061469433,0.41128685,2342.8,2342.1,12.17870175]
[1770061469604,0.41128685,2342.8,2342.4,12.19580783]
[1770061469803,0.41128685,2342.8,2342.4,12.17870175]
[1770061470104,0.41128685,2342.8,2342.5,13.07370175]
[1770061470301,0.30676657,2342.8,2342.5,13.07370175]
[1770061470634,0.30676657,2342.8,2342.5,0.895]
[1770061471930,0.30676657,2342.8,2342.5,1.9622259]
[1770061472113,0.30676657,2342.8,2342.5,0.895]
[1770061473424,0.30676657,2342.8,2342.5,1.96223495]
[1770061473626,0.30676657,2342.8,2342.5,2.58538588]
[1770061474204,1.06669506,2343.7,2342.8,12.19580783]
[1770061474420,12.99495992,2343.8,2342.5,2.60249196]
[1770061474421,0.0019032,2343.8,2342.9,12.17870175]
[1770061474639,0.0019032,2343.8,2343.0,1.21787018]
[1770061474938,0.0019032,2343.8,2343.0,2.11287018]
[1770061475434,1.06857338,2343.8,2343.0,2.11287018]
[1770061475617,0.0019032,2343.8,2343.1,1.06696257]
[1770061475816,0.0019032,2343.8,2343.1,13.2627704]
[1770061476206,0.0019032,2343.8,2343.1,13.24566432]
[1770061476401,0.0019032,2343.8,2343.2,1.96263848]
[1770061477039,0.0019032,2343.8,2343.1,1.08406865]
[1770061477749,0.0011,2344.1,2343.4,12.19580783]
[1770061477948,0.0011,2344.1,2343.5,13.07370175]
[1770061480330,0.0011,2344.1,2343.6,1.06673493]
[1770061480531,12.99415672,2344.1,2343.0,13.39657193]